lending/lending_fUSD_20250706
["ID","MTS","AMOUNT","RATE_DAILY","PERIOD"]
[369958682,1751797840511,-375.17,0.00017764,2]
[369958684,1751797840521,-151.0,0.00017771,2]
[369958686,1751797840530,-151.0,0.00017771,2]
[369958688,1751797840539,-151.0,0.00017771,2]
[369958689,1751797840548,-151.0,0.00017771,2]
[369958691,1751797840557,-151.0,0.00017771,2]
[369958693,1751797840566,-151.0,0.00017771,2]
[369958695,1751797840576,-151.0,0.00017771,2]
[369958697,1751797840585,-151.0,0.00017771,2]
[369958699,1751797840594,-151.0,0.00017771,2]
[369958701,1751797840603,-201.32232001,0.00017771,2]
[369958703,1751797840612,-375.17,0.00017773,2]
[369958705,1751797840621,-375.17,0.00017783,2]
[369958707,1751797840630,-375.17,0.00017792,2]
[369958709,1751797840640,-46.63833736,0.00017801,2]
[369958717,1751797840702,-538.9287105,0.00017801,2]
[369958725,1751797840775,-405.89734009,0.00017801,2]
[369959041,1751797843835,-702.4480556,0.00017801,2]
[369959043,1751797843844,-375.17,0.00017801,2]
[369959045,1751797843853,-375.17,0.00017811,2]
[369959046,1751797843862,-550.0,0.00017811,2]
[369959048,1751797843871,-375.17,0.0001782,2]
[369959050,1751797843880,-205.24,0.00017823,2]
[369959052,1751797843889,-375.17,0.00017829,2]
[369959054,1751797843899,-375.17,0.00017839,2]
[369959056,1751797843908,-375.17,0.00017848,2]
[369959058,1751797843917,-22149.16,0.00017848,2]
[369959060,1751797843926,-375.17,0.00017857,2]
[369959062,1751797843935,-375.17,0.00017866,2]
[369959064,1751797843945,-375.17,0.00017876,2]
[369959066,1751797843954,-375.17,0.00017885,2]
[369959068,1751797843964,-150.0,0.00017975,2]
[369959071,1751797843973,-150.0,0.00017975,2]
[369959072,1751797843982,-190.4176325,0.00017975,2]
[369959075,1751797843993,-150.0,0.00017975,2]
[369959076,1751797844003,-150.0,0.00017975,2]
[369959079,1751797844012,-150.0,0.00017975,2]
[369959080,1751797844021,-150.0,0.00017975,2]
[369959083,1751797844031,-150.0,0.00017975,2]
[369959085,1751797844040,-150.86844955,0.00017975,2]
[369959086,1751797844049,-150.58604695,0.00017975,2]
[369959088,1751797844058,-150.71576459,0.00017975,2]
[369959091,1751797844069,-150.35429664,0.00017975,2]
[369959092,1751797844079,-165.64,0.00017982,2]
[369959094,1751797844088,-200.0,0.00018,2]
[369959096,1751797844097,-284.0,0.000181,2]
[369959098,1751797844106,-545.0,0.00018147,2]
[369959100,1751797844115,-500.0,0.0001816,2]
[369959102,1751797844124,-500.0,0.0001816,2]
[369959104,1751797844133,-150.99427091,0.0001816,2]
[369959106,1751797844143,-150.0,0.00018175,2]
[369959108,1751797844152,-7675.08274071,0.00018184,2]
[369959110,1751797844161,-300.0,0.00018261,2]
[369959112,1751797844171,-151.0,0.00018261,2]
[369959114,1751797844180,-527.24332654,0.00018261,2]
[369959116,1751797844189,-207.4,0.00018261,2]
[369959118,1751797844199,-166.32,0.00018301,2]
[369959121,1751797844209,-181.6,0.00018329,2]
[369959123,1751797844218,-12979.87,0.00018356,2]
[369959124,1751797844227,-152.0,0.00018359,3]
[369959126,1751797844237,-150.0,0.00018375,2]
[369959129,1751797844247,-150.0,0.00018375,2]
[369959130,1751797844256,-150.0,0.00018575,2]
[369959162,1751797844524,-278.0,0.0001859,2]
[369959164,1751797844535,-150.0,0.00018641,2]
[369959166,1751797844543,-400.0,0.000187,6]
[369959167,1751797844553,-862.57606904,0.0001875,2]
[369959168,1751797844561,-150.0,0.00018774,2]
[369959169,1751797844570,-150.0,0.00018774,2]
[369959170,1751797844579,-800.0,0.000188,6]
[369959171,1751797844588,-278.0,0.00018897,2]
[369959172,1751797844597,-299.1825,0.000189,2]
[369959173,1751797844606,-1300.0,0.000189,6]
[369959174,1751797844615,-1686.8347542,0.000189,2]
[369959175,1751797844623,-150.0,0.00018974,2]
[369959176,1751797844632,-150.0,0.00018974,2]
[369959177,1751797844641,-296.13554275,0.00018978,2]
[369959178,1751797844650,-296.13554272,0.00019021,2]
[369959179,1751797844659,-1680.0,0.00019047,2]
[369959180,1751797844668,-151.021694,0.00019062,2]
[369959181,1751797844677,-296.13554272,0.00019065,2]
[369959182,1751797844687,-2807.74630765,0.00019066,2]
[369959183,1751797844696,-273.0,0.0001907,2]
[369959185,1751797844705,-582.93521291,0.00019078,2]
[369959187,1751797844716,-589.24429087,0.00019078,2]
[369959189,1751797844730,-514.33575639,0.00019078,2]
[369959190,1751797844740,-153.29799441,0.00019078,2]
[369959191,1751797844749,-24086.9322,0.00019078,2]
[369959192,1751797844761,-1000.0,0.00019078,2]
[369959193,1751797844771,-288.0077,0.00019078,2]
[369959194,1751797844781,-5000.0,0.00019078,2]
[369959195,1751797844790,-168.0,0.00019092,2]
[369959196,1751797844801,-160.0,0.00019099,2]
[369959197,1751797844811,-836.76783547,0.00019099,2]
[369959198,1751797844820,-862.57606905,0.00019105,2]
[369959199,1751797844830,-296.13554272,0.00019108,2]
[369959200,1751797844839,-159.1,0.00019133,2]
[369959201,1751797844849,-296.13554272,0.00019151,2]
[369959202,1751797844859,-3171.92872911,0.00019152,2]
[369959203,1751797844868,-389.17984822,0.00019169,2]
[369959204,1751797844877,-582.93521284,0.00019169,2]
[369959205,1751797844887,-150.0,0.00019174,2]
[369959206,1751797844896,-150.0,0.00019174,2]
[369959207,1751797844905,-280.40338167,0.00019177,2]
[369959208,1751797844914,-306.43101929,0.00019177,2]
[369959209,1751797844923,-223.07408601,0.00019177,2]
[369959210,1751797844932,-500.0,0.00019177,2]
[369959211,1751797844943,-228.69540502,0.00019177,2]
[369959212,1751797844952,-327.72757675,0.00019177,2]
[369959213,1751797844961,-586.71028055,0.00019177,2]
[369959214,1751797844970,-460.0,0.00019178,2]
[369959215,1751797844980,-520.0,0.00019178,2]
[369959216,1751797844989,-460.0,0.00019178,2]
[369959217,1751797844998,-460.0,0.00019178,2]
[369959218,1751797845007,-460.0,0.00019178,2]
[369959219,1751797845017,-460.0,0.00019178,2]
[369959220,1751797845026,-460.0,0.00019178,2]
[369959221,1751797845035,-460.0,0.00019178,2]
[369959222,1751797845045,-460.0,0.00019178,2]
[369959223,1751797845056,-500.0,0.00019178,2]
[369959224,1751797845065,-500.0,0.00019178,2]
[369959225,1751797845075,-500.0,0.00019178,2]
[369959226,1751797845084,-373.62,0.00019178,2]
[369959227,1751797845093,-460.0,0.00019178,2]
[369959229,1751797845102,-460.0,0.00019178,2]
[369959231,1751797845111,-476.19104599,0.00019178,2]
[369959233,1751797845121,-460.0,0.00019178,2]
[369959235,1751797845130,-460.0,0.00019178,2]
[369959237,1751797845139,-460.0,0.00019178,2]
[369959239,1751797845148,-460.0,0.00019178,2]
[369959241,1751797845158,-460.0,0.00019178,2]
[369959243,1751797845168,-460.0,0.00019178,2]
[369959245,1751797845177,-547.64575287,0.00019178,2]
[369959247,1751797845186,-460.0,0.00019178,2]
[369959249,1751797845195,-460.0,0.00019178,2]
[369959251,1751797845205,-460.0,0.00019178,2]
[369959253,1751797845214,-163.072734,0.00019178,2]
[369959255,1751797845224,-170.64026,0.00019178,2]
[369959257,1751797845233,-1295.60132,0.00019178,2]
[369959259,1751797845243,-460.0,0.00019178,2]
[369959261,1751797845252,-460.0,0.00019178,2]
[369959263,1751797845262,-460.0,0.00019178,2]
[369959265,1751797845271,-460.0,0.00019178,2]
[369959267,1751797845282,-460.0,0.00019178,2]
[369959269,1751797845291,-460.0,0.00019178,2]
[369959271,1751797845301,-460.0,0.00019178,2]
[369959272,1751797845310,-460.0,0.00019178,2]
[369959273,1751797845320,-460.0,0.00019178,2]
[369959274,1751797845329,-529.72270154,0.00019178,2]
[369959275,1751797845338,-460.0,0.00019178,2]
[369959276,1751797845347,-460.0,0.00019178,2]
[369959277,1751797845358,-460.0,0.00019178,2]
[369959278,1751797845367,-460.0,0.00019178,2]
[369959279,1751797845377,-460.0,0.00019178,2]
[369959280,1751797845386,-460.0,0.00019178,2]
[369959281,1751797845395,-460.0,0.00019178,2]
[369959282,1751797845404,-460.0,0.00019178,2]
[369959283,1751797845414,-460.0,0.00019178,2]
[369959284,1751797845423,-460.0,0.00019178,2]
[369959285,1751797845433,-460.0,0.00019178,2]
[369959286,1751797845442,-460.0,0.00019178,2]
[369959287,1751797845451,-460.0,0.00019178,2]
[369959288,1751797845460,-460.0,0.00019178,2]
[369959289,1751797845469,-460.0,0.00019178,2]
[369959290,1751797845479,-460.0,0.00019178,2]
[369959291,1751797845489,-460.0,0.00019178,2]
[369959292,1751797845498,-460.0,0.00019178,2]
[369959294,1751797845507,-460.0,0.00019178,2]
[369959296,1751797845517,-460.0,0.00019178,2]
[369959298,1751797845526,-275.89414649,0.00019178,2]
[369959300,1751797845536,-460.0,0.00019178,2]
[369959302,1751797845546,-460.0,0.00019178,2]
[369959304,1751797845555,-460.0,0.00019178,2]
[369959306,1751797845565,-249.64155961,0.00019178,2]
[369959308,1751797845574,-460.0,0.00019178,2]
[369959310,1751797845583,-460.0,0.00019178,2]
[369959311,1751797845594,-478.32,0.00019178,2]
[369959312,1751797845604,-562.80293357,0.00019178,2]
[369959313,1751797845613,-177.37305229,0.00019178,2]
[369959314,1751797845623,-460.0,0.00019178,2]
[369959315,1751797845632,-460.0,0.00019178,2]
[369959316,1751797845641,-460.0,0.00019178,2]
[369959317,1751797845650,-460.0,0.00019178,2]
[369959318,1751797845659,-460.0,0.00019178,2]
[369959319,1751797845668,-460.0,0.00019178,2]
[369959320,1751797845677,-460.0,0.00019178,2]
[369959321,1751797845686,-460.0,0.00019178,2]
[369959322,1751797845696,-460.0,0.00019178,2]
[369959323,1751797845705,-499.08,0.00019178,2]
[369959324,1751797845715,-460.0,0.00019178,2]
[369959325,1751797845729,-251.71292048,0.00019178,2]
[369959326,1751797845739,-585.21050639,0.00019178,2]
[369959327,1751797845748,-460.0,0.00019178,2]
[369959328,1751797845757,-460.0,0.00019178,2]
[369959329,1751797845767,-460.0,0.00019178,2]
[369959330,1751797845776,-460.0,0.00019178,2]
[369959331,1751797845785,-460.0,0.00019178,2]
[369959332,1751797845795,-460.0,0.00019178,2]
[369959333,1751797845805,-460.0,0.00019178,2]
[369959334,1751797845815,-460.0,0.00019178,2]
[369959335,1751797845824,-460.0,0.00019178,2]
[369959336,1751797845834,-460.0,0.00019178,2]
[369959337,1751797845843,-460.0,0.00019178,2]
[369959338,1751797845852,-460.0,0.00019178,2]
[369959339,1751797845861,-460.0,0.00019178,2]
[369959340,1751797845871,-460.0,0.00019178,2]
[369959341,1751797845879,-460.0,0.00019178,2]
[369959342,1751797845889,-460.0,0.00019178,2]
[369959343,1751797845899,-460.0,0.00019178,2]
[369959344,1751797845908,-460.0,0.00019178,2]
[369959345,1751797845918,-460.0,0.00019178,2]
[369959346,1751797845927,-460.0,0.00019178,2]
[369959347,1751797845936,-460.0,0.00019178,2]
[369959348,1751797845946,-460.0,0.00019178,2]
[369959349,1751797845955,-460.0,0.00019178,2]
[369959350,1751797845964,-460.0,0.00019178,2]
[369959351,1751797845973,-460.0,0.00019178,2]
[369959352,1751797845983,-460.0,0.00019178,2]
[369959353,1751797845994,-460.0,0.00019178,2]
[369959354,1751797846003,-460.0,0.00019178,2]
[369959355,1751797846012,-460.0,0.00019178,2]
[369959356,1751797846021,-460.0,0.00019178,2]
[369959357,1751797846030,-460.0,0.00019178,2]
[369959358,1751797846039,-460.0,0.00019178,2]
[369959359,1751797846048,-460.0,0.00019178,2]
[369959360,1751797846058,-460.0,0.00019178,2]
[369959361,1751797846068,-462.20356058,0.00019178,2]
[369959362,1751797846077,-460.0,0.00019178,2]
[369959363,1751797846087,-523.96484857,0.00019178,2]
[369959364,1751797846096,-460.0,0.00019178,2]
[369959365,1751797846106,-460.0,0.00019178,2]
[369959366,1751797846115,-460.0,0.00019178,2]
[369959367,1751797846124,-468.04314584,0.00019178,2]
[369959368,1751797846133,-460.0,0.00019178,2]
[369959369,1751797846143,-460.0,0.00019178,2]
[369959370,1751797846152,-460.0,0.00019178,2]
[369959371,1751797846161,-460.0,0.00019178,2]
[369959372,1751797846170,-460.0,0.00019178,2]
[369959373,1751797846180,-460.0,0.00019178,2]
[369959374,1751797846190,-532.62,0.00019178,2]
[369959375,1751797846199,-460.0,0.00019178,2]
[369959376,1751797846208,-460.0,0.00019178,2]
[369959377,1751797846218,-460.0,0.00019178,2]
[369959378,1751797846227,-496.6777298,0.00019178,2]
[369959379,1751797846236,-460.0,0.00019178,2]
[369959380,1751797846246,-460.0,0.00019178,2]
[369959381,1751797846255,-460.0,0.00019178,2]
[369959382,1751797846265,-460.0,0.00019178,2]
[369959383,1751797846274,-460.0,0.00019178,2]
[369959384,1751797846284,-460.0,0.00019178,2]
[369959385,1751797846293,-460.0,0.00019178,2]
[369959386,1751797846303,-460.0,0.00019178,2]
[369959387,1751797846312,-460.0,0.00019178,2]
[369959388,1751797846322,-460.0,0.00019178,2]
[369959389,1751797846331,-460.0,0.00019178,2]
[369959390,1751797846340,-460.0,0.00019178,2]
[369959391,1751797846350,-460.0,0.00019178,2]
[369959392,1751797846360,-460.0,0.00019178,2]
[369959393,1751797846370,-385.24436627,0.00019178,2]
[369959394,1751797846380,-662.97,0.00019178,2]
[369959395,1751797846389,-460.0,0.00019178,2]
[369959396,1751797846399,-460.0,0.00019178,2]
[369959397,1751797846408,-460.0,0.00019178,2]
[369959398,1751797846418,-460.0,0.00019178,2]
[369959399,1751797846427,-460.0,0.00019178,2]
[369959401,1751797846436,-555.63905406,0.00019178,2]
[369959402,1751797846445,-460.0,0.00019178,2]
[369959403,1751797846454,-460.0,0.00019178,2]
[369959404,1751797846463,-460.0,0.00019178,2]
[369959405,1751797846473,-460.0,0.00019178,2]
[369959406,1751797846482,-460.0,0.00019178,2]
[369959407,1751797846492,-460.0,0.00019178,2]
[369959408,1751797846501,-460.0,0.00019178,2]
[369959409,1751797846511,-590.20353937,0.00019178,2]
[369959410,1751797846520,-460.0,0.00019178,2]
[369959411,1751797846529,-490.0,0.00019178,2]
[369959412,1751797846539,-491.57734886,0.00019178,2]
[369959413,1751797846548,-460.0,0.00019178,2]
[369959414,1751797846558,-460.0,0.00019178,2]
[369959415,1751797846567,-460.0,0.00019178,2]
[369959416,1751797846576,-460.0,0.00019178,2]
[369959417,1751797846586,-460.0,0.00019178,2]
[369959418,1751797846595,-460.0,0.00019178,2]
[369959419,1751797846604,-396.69652867,0.00019178,2]
[369959420,1751797846613,-460.0,0.00019178,2]
[369959421,1751797846622,-460.0,0.00019178,2]
[369959422,1751797846631,-460.0,0.00019178,2]
[369959423,1751797846641,-460.0,0.00019178,2]
[369959424,1751797846650,-249.40315812,0.00019178,2]
[369959425,1751797846659,-460.0,0.00019178,2]
[369959426,1751797846667,-460.0,0.00019178,2]
[369959427,1751797846676,-460.0,0.00019178,2]
[369959428,1751797846686,-460.0,0.00019178,2]
[369959429,1751797846695,-460.0,0.00019178,2]
[369959430,1751797846705,-460.0,0.00019178,2]
[369959431,1751797846716,-460.0,0.00019178,2]
[369959432,1751797846727,-460.0,0.00019178,2]
[369959433,1751797846737,-460.0,0.00019178,2]
[369959434,1751797846751,-460.0,0.00019178,2]
[369959435,1751797846766,-460.0,0.00019178,2]
[369959436,1751797846780,-460.0,0.00019178,2]
[369959437,1751797846791,-460.0,0.00019178,2]
[369959438,1751797846805,-460.0,0.00019178,2]
[369959439,1751797846819,-460.0,0.00019178,2]
[369959440,1751797846832,-460.0,0.00019178,2]
[369959441,1751797846845,-460.0,0.00019178,2]
[369959442,1751797846859,-460.0,0.00019178,2]
[369959443,1751797846873,-460.0,0.00019178,2]
[369959444,1751797846885,-460.0,0.00019178,2]
[369959445,1751797846897,-153.55840225,0.00019178,2]
[369959446,1751797846908,-460.0,0.00019178,2]
[369959447,1751797846922,-460.0,0.00019178,2]
[369959448,1751797846935,-460.0,0.00019178,2]
[369959449,1751797846948,-460.0,0.00019178,2]
[369959450,1751797846961,-460.0,0.00019178,2]
[369959451,1751797846975,-460.0,0.00019178,2]
[369959452,1751797846989,-498.94,0.00019178,2]
[369959453,1751797847002,-460.0,0.00019178,2]
[369959454,1751797847015,-300.0,0.00019178,2]
[369959455,1751797847029,-460.0,0.00019178,2]
[369959456,1751797847043,-455.97982992,0.00019178,2]
[369959457,1751797847056,-460.0,0.00019178,2]
[369959458,1751797847068,-460.0,0.00019178,2]
[369959459,1751797847081,-596.25,0.00019178,2]
[369959460,1751797847095,-460.0,0.00019178,2]
[369959461,1751797847110,-460.0,0.00019178,2]
[369959462,1751797847122,-460.0,0.00019178,2]
[369959463,1751797847134,-227.93373623,0.00019178,2]
[369959464,1751797847145,-460.0,0.00019178,2]
[369959465,1751797847156,-460.0,0.00019178,2]
[369959466,1751797847167,-460.0,0.00019178,2]
[369959467,1751797847181,-460.0,0.00019178,2]
[369959468,1751797847195,-460.0,0.00019178,2]
[369959469,1751797847206,-460.0,0.00019178,2]
[369959470,1751797847216,-460.0,0.00019178,2]
[369959471,1751797847228,-460.0,0.00019178,2]
[369959472,1751797847240,-460.0,0.00019178,2]
[369959473,1751797847254,-460.0,0.00019178,2]
[369959474,1751797847265,-460.0,0.00019178,2]
[369959475,1751797847276,-460.0,0.00019178,2]
[369959476,1751797847287,-460.0,0.00019178,2]
[369959477,1751797847298,-460.0,0.00019178,2]
[369959478,1751797847310,-533.47,0.00019178,2]
[369959479,1751797847322,-460.0,0.00019178,2]
[369959480,1751797847334,-460.0,0.00019178,2]
[369959481,1751797847346,-460.0,0.00019178,2]
[369959482,1751797847358,-460.0,0.00019178,2]
[369959483,1751797847370,-460.0,0.00019178,2]
[369959484,1751797847381,-460.0,0.00019178,2]
[369959485,1751797847393,-460.0,0.00019178,2]
[369959486,1751797847404,-566.05967663,0.00019178,2]
[369959487,1751797847422,-460.0,0.00019178,2]
[369959488,1751797847434,-460.0,0.00019178,2]
[369959489,1751797847445,-460.0,0.00019178,2]
[369959490,1751797847457,-460.0,0.00019178,2]
[369959491,1751797847470,-380.09835829,0.00019178,2]
[369959492,1751797847482,-460.0,0.00019178,2]
[369959493,1751797847494,-460.0,0.00019178,2]
[369959494,1751797847507,-460.0,0.00019178,2]
[369959495,1751797847519,-460.0,0.00019178,2]
[369959496,1751797847531,-460.0,0.00019178,2]
[369959497,1751797847543,-460.0,0.00019178,2]
[369959498,1751797847554,-460.0,0.00019178,2]
[369959499,1751797847565,-460.0,0.00019178,2]
[369959500,1751797847577,-460.0,0.00019178,2]
[369959501,1751797847589,-460.0,0.00019178,2]
[369959502,1751797847600,-490.0,0.00019178,2]
[369959503,1751797847611,-456.86082255,0.00019178,2]
[369959504,1751797847623,-460.0,0.00019178,2]
[369959505,1751797847634,-460.0,0.00019178,2]
[369959506,1751797847646,-460.0,0.00019178,2]
[369959507,1751797847658,-460.0,0.00019178,2]
[369959508,1751797847669,-460.0,0.00019178,2]
[369959509,1751797847680,-460.0,0.00019178,2]
[369959510,1751797847692,-460.0,0.00019178,2]
[369959511,1751797847703,-460.0,0.00019178,2]
[369959512,1751797847715,-460.0,0.00019178,2]
[369959513,1751797847729,-460.0,0.00019178,2]
[369959514,1751797847741,-460.0,0.00019178,2]
[369959515,1751797847753,-460.0,0.00019178,2]
[369959516,1751797847765,-460.0,0.00019178,2]
[369959517,1751797847776,-460.0,0.00019178,2]
[369959518,1751797847788,-460.0,0.00019178,2]
[369959519,1751797847803,-494.93866407,0.00019178,2]
[369959520,1751797847815,-460.0,0.00019178,2]
[369959521,1751797847827,-460.0,0.00019178,2]
[369959522,1751797847839,-460.0,0.00019178,2]
[369959523,1751797847851,-496.01,0.00019178,2]
[369959524,1751797847862,-460.0,0.00019178,2]
[369959525,1751797847874,-460.0,0.00019178,2]
[369959526,1751797847885,-929.71,0.00019178,2]
[369959527,1751797847896,-686.98,0.00019178,2]
[369959528,1751797847907,-460.0,0.00019178,2]
[369959529,1751797847919,-460.0,0.00019178,2]
[369959530,1751797847930,-549.21,0.00019178,2]
[369959531,1751797847942,-460.0,0.00019178,2]
[369959532,1751797847953,-460.0,0.00019178,2]
[369959533,1751797847964,-460.0,0.00019178,2]
[369959534,1751797847976,-460.0,0.00019178,2]
[369959535,1751797847987,-460.0,0.00019178,2]
[369959536,1751797848000,-460.0,0.00019178,2]
[369959537,1751797848011,-935.64,0.00019178,2]
[369959538,1751797848023,-460.0,0.00019178,2]
[369959539,1751797848034,-460.0,0.00019178,2]
[369959540,1751797848045,-460.0,0.00019178,2]
[369959541,1751797848057,-460.0,0.00019178,2]
[369959542,1751797848069,-460.0,0.00019178,2]
[369959543,1751797848081,-460.0,0.00019178,2]
[369959544,1751797848092,-460.0,0.00019178,2]
[369959545,1751797848104,-460.0,0.00019178,2]
[369959546,1751797848116,-460.0,0.00019178,2]
[369959547,1751797848128,-460.0,0.00019178,2]
[369959548,1751797848140,-520.0,0.00019178,2]
[369959549,1751797848152,-460.0,0.00019178,2]
[369959550,1751797848164,-532.57,0.00019178,2]
[369959551,1751797848175,-460.0,0.00019178,2]
[369959552,1751797848188,-460.0,0.00019178,2]
[369959553,1751797848200,-460.0,0.00019178,2]
[369959554,1751797848212,-324.24777553,0.00019178,2]
[369959555,1751797848223,-460.0,0.00019178,2]
[369959556,1751797848235,-460.0,0.00019178,2]
[369959557,1751797848248,-460.0,0.00019178,2]
[369959558,1751797848259,-460.0,0.00019178,2]
[369959559,1751797848272,-460.0,0.00019178,2]
[369959560,1751797848284,-730.21,0.00019178,2]
[369959561,1751797848295,-460.0,0.00019178,2]
[369959562,1751797848307,-460.0,0.00019178,2]
[369959563,1751797848319,-460.0,0.00019178,2]
[369959564,1751797848332,-460.0,0.00019178,2]
[369959565,1751797848344,-555.02,0.00019178,2]
[369959566,1751797848356,-460.0,0.00019178,2]
[369959567,1751797848367,-520.0,0.00019178,2]
[369959568,1751797848380,-460.0,0.00019178,2]
[369959569,1751797848392,-490.0,0.00019178,2]
[369959570,1751797848403,-460.0,0.00019178,2]
[369959571,1751797848415,-460.0,0.00019178,2]
[369959572,1751797848427,-460.0,0.00019178,2]
[369959573,1751797848439,-460.0,0.00019178,2]
[369959574,1751797848451,-460.0,0.00019178,2]
[369959575,1751797848463,-460.0,0.00019178,2]
[369959576,1751797848475,-460.0,0.00019178,2]
[369959577,1751797848488,-460.0,0.00019178,2]
[369959578,1751797848500,-460.0,0.00019178,2]
[369959579,1751797848511,-460.0,0.00019178,2]
[369959580,1751797848523,-272.35286322,0.00019178,2]
[369959581,1751797848535,-460.0,0.00019178,2]
[369959582,1751797848546,-460.0,0.00019178,2]
[369959583,1751797848558,-460.0,0.00019178,2]
[369959584,1751797848570,-460.0,0.00019178,2]
[369959585,1751797848582,-523.18224919,0.00019178,2]
[369959586,1751797848593,-517.61,0.00019178,2]
[369959587,1751797848605,-640.8,0.00019178,2]
[369959588,1751797848616,-460.0,0.00019178,2]
[369959589,1751797848628,-460.0,0.00019178,2]
[369959590,1751797848639,-460.0,0.00019178,2]
[369959591,1751797848650,-182.03054145,0.00019178,2]
[369959592,1751797848661,-604.76,0.00019178,2]
[369959593,1751797848672,-596.152,0.00019178,2]
[369959594,1751797848684,-460.0,0.00019178,2]
[369959595,1751797848696,-460.0,0.00019178,2]
[369959596,1751797848707,-492.09,0.00019178,2]
[369959597,1751797848719,-724.2,0.00019178,2]
[369959598,1751797848733,-460.0,0.00019178,2]
[369959599,1751797848745,-460.0,0.00019178,2]
[369959600,1751797848756,-460.0,0.00019178,2]
[369959601,1751797848767,-579.2,0.00019178,2]
[369959602,1751797848779,-460.0,0.00019178,2]
[369959603,1751797848790,-460.0,0.00019178,2]
[369959604,1751797848801,-460.0,0.00019178,2]
[369959605,1751797848813,-460.0,0.00019178,2]
[369959606,1751797848825,-460.0,0.00019178,2]
[369959607,1751797848837,-460.0,0.00019178,2]
[369959608,1751797848848,-460.0,0.00019178,2]
[369959609,1751797848858,-460.0,0.00019178,2]
[369959610,1751797848869,-460.0,0.00019178,2]
[369959611,1751797848880,-460.0,0.00019178,2]
[369959612,1751797848892,-460.0,0.00019178,2]
[369959613,1751797848903,-460.0,0.00019178,2]
[369959614,1751797848915,-460.0,0.00019178,2]
[369959615,1751797848926,-574.56,0.00019178,2]
[369959616,1751797848938,-460.0,0.00019178,2]
[369959617,1751797848949,-460.0,0.00019178,2]
[369959618,1751797848960,-460.0,0.00019178,2]
[369959619,1751797848972,-460.0,0.00019178,2]
[369959620,1751797848983,-460.0,0.00019178,2]
[369959621,1751797848995,-460.0,0.00019178,2]
[369959622,1751797849006,-460.0,0.00019178,2]
[369959623,1751797849018,-460.0,0.00019178,2]
[369959624,1751797849029,-460.0,0.00019178,2]
[369959625,1751797849040,-460.0,0.00019178,2]
[369959626,1751797849051,-460.0,0.00019178,2]
[369959627,1751797849062,-460.0,0.00019178,2]
[369959628,1751797849074,-460.0,0.00019178,2]
[369959629,1751797849085,-587.32,0.00019178,2]
[369959630,1751797849096,-460.0,0.00019178,2]
[369959631,1751797849107,-460.0,0.00019178,2]
[369959632,1751797849119,-189.6993305,0.00019178,2]
[369959633,1751797849130,-460.0,0.00019178,2]
[369959634,1751797849141,-460.0,0.00019178,2]
[369959635,1751797849153,-460.0,0.00019178,2]